[Event "9th Sharjah Cup Women 2018"]
[Site "Sharjah"]
[Date "2018.12.18"]
[Round "7"]
[White "Enkhtuul, Altan-Ulzii"]
[Black "Bauyrzhan, Arnash"]
[Result "1/2-1/2"]
[ECO "D70"]
[WhiteElo "2267"]
[BlackElo "1978"]
[Annotator "NA"]
[PlyCount "199"]
[EventDate "2018.12.14"]
[EventType "swiss"]
[EventCountry "UAE"]
[SourceTitle "playchess.com"]
[Source "ChessBase"]
[SourceQuality "1"]
[TimeControl "5400+30"]

1. d4 {[%emt 0:00:00]} d5 {[%emt 0:00:00]} 2. Nf3 {[%emt 0:00:00]} Nf6 {[%emt 0:00:13]} 3. c4 {[%emt 0:00:09]} c6 {[%emt 0:00:55]} 4. Nbd2 {[%emt 0:00:31]} Bf5 {[%emt 0:04:46]} 5. g3 {[%emt 0:01:30]} h6 {[%emt 0:00:56]} 6. Bg2 {[%emt 0:00:13]} e6 {[%emt 0:00:28]} 7. O-O {[%emt 0:00:11]} Nbd7 {[%emt 0:01:04]} 8. b3 {[%emt 0:02:24]} Be7 {[%emt 0:00:57]} 9. Bb2 {[%emt 0:00:11]} O-O {[%emt 0:02:46]} 10. Ne5 {[%emt 0:04:00]} Bd6 {[%emt 0:12:50]} 11. Re1 {[%emt 0:14:00]} Qc7 {[%emt 0:05:54]} 12. Nxd7 {[%emt 0:05:06]} Qxd7 {[%emt 0:00:12]} 13. f3 {[%emt 0:03:45]} Rad8 {[%emt 0:05:06]} 14. e4 {[%emt 0:13:58]} dxe4 {[%emt 0:00:10]} 15. Nxe4 {[%emt 0:00:16]} Bb4 {[%emt 0:24:17]} 16. Nxf6+ {[%emt 0:16:37]} gxf6 {[%emt 0:00:07]} 17. Rf1 {[%emt 0:03:38]} e5 {[%emt 0:04:24]} 18. a3 {[%emt 0:02:41]} Ba5 {[%emt 0:00:54]} 19. b4 {[%emt 0:00:17]} Bc7 {[%emt 0:02:03]} 20. Qc1 {[%emt 0:02:36]} Kh7 {[%emt 0:03:43]} 21. Rd1 {[%emt 0:02:15]} Qc8 {[%emt 0:09:06]} 22. Kh1 {[%emt 0:01:20]} exd4 {[%emt 0:02:11]} 23. Rxd4 {[%emt 0:01:32]} Rxd4 {[%emt 0:00:07]} 24. Bxd4 {[%emt 0:00:06]} Be5 {[%emt 0:00:33]} 25. Bxe5 {[%emt 0:01:47]} fxe5 {[%emt 0:00:07]} 26. Qe3 {[%emt 0:00:04]} Qb8 {[%emt 0:06:08]} 27. Rd1 {[%emt 0:00:26]} Rd8 {[%emt 0:01:20]} 28. Rxd8 {[%emt 0:14:49]} Qxd8 {[%emt 0:00:02]} 29. Qxa7 {[%emt 0:00:18]} Qd1+ {[%emt 0:00:06]} 30. Qg1 {[%emt 0:00:05]} Qb3 {[%emt 0:01:29]} 31. h4 {[%emt 0:02:39]} Qxc4 {[%emt 0:07:59]} 32. Qe1 {[%emt 0:01:11]} Qd4 {[%emt 0:00:42]} 33. Kh2 {[%emt 0:00:54]} Bc2 {[%emt 0:00:58]} 34. Qc1 {[%emt 0:00:43]} Bf5 {[%emt 0:01:43]} 35. Qe1 {[%emt 0:02:48]} Bc2 {[%emt 0:00:03]} 36. Qc1 {[%emt 0:00:41]} Bf5 {[%emt 0:00:02]} 37. g4 {[%emt 0:00:04]} Bd3 {[%emt 0:01:04]} 38. Kg3 {[%emt 0:00:14]} Kg7 {[%emt 0:01:17]} 39. h5 {[%emt 0:00:36]} Qd6 {[%emt 0:02:01]} 40. Qe3 {[%emt 0:00:59]} Bc4 {[%emt 0:00:37]} 41. Qc3 {[%emt 0:00:20]} Bd5 {[%emt 0:00:20]} 42. Kh3 {[%emt 0:01:38]} Qf6 {[%emt 0:00:02]} 43. a4 {[%emt 0:00:59]} Qf4 {[%emt 0:00:42]} 44. b5 {[%emt 0:00:28]} cxb5 {[%emt 0:00:34]} 45. axb5 {[%emt 0:00:04]} b6 {[%emt 0:00:42]} 46. Qd3 {[%emt 0:00:38]} Bc4 {[%emt 0:00:31]} 47. Qd6 {[%emt 0:01:53]} Bxb5 {[%emt 0:00:06]} 48. Qxb6 {[%emt 0:00:12]} Be2 {[%emt 0:00:09]} 49. Qf2 {[%emt 0:00:09]} Bd3 {[%emt 0:00:30]} 50. Qb2 {[%emt 0:02:01]} Ba6 {[%emt 0:00:33]} 51. Qf2 {[%emt 0:00:26]} Bd3 {[%emt 0:00:06]} 52. Qb2 {[%emt 0:00:57]} Ba6 {[%emt 0:00:07]} 53. Qf2 {[%emt 0:00:30]} Bd3 {[%emt 0:00:05]} 54. Qe1 {[%emt 0:00:30]} Bb5 {[%emt 0:01:27]} 55. Qg3 {[%emt 0:00:15]} Kf6 {[%emt 0:01:02]} 56. Qh4+ {[%emt 0:00:48]} Kg7 {[%emt 0:00:11]} 57. Qg3 {[%emt 0:00:27]} Kf6 {[%emt 0:00:02]} 58. Qf2 {[%emt 0:00:09]} Kg7 {[%emt 0:00:05]} 59. Bf1 {[%emt 0:00:13]} Bxf1+ {[%emt 0:00:26]} 60. Qxf1 {[%emt 0:00:04]} Kf6 {[%emt 0:00:52]} 61. Qa6+ {[%emt 0:00:23]} Kg7 {[%emt 0:00:14]} 62. Qd3 {[%emt 0:00:15]} Qc1 {[%emt 0:00:37]} 63. Kg2 {[%emt 0:00:22]} Qb2+ {[%emt 0:01:05]} 64. Kg3 {[%emt 0:00:06]} Qc1 {[%emt 0:00:12]} 65. Kf2 {[%emt 0:00:25]} Qb2+ {[%emt 0:00:32]} 66. Ke3 {[%emt 0:02:02]} Qc1+ {[%emt 0:00:14]} 67. Ke4 {[%emt 0:00:27]} Qf4+ {[%emt 0:00:44]} 68. Kd5 {[%emt 0:00:04]} Qf6 {[%emt 0:00:52]} 69. Qc3 {[%emt 0:00:49]} Qe6+ {[%emt 0:00:30]} 70. Ke4 {[%emt 0:00:04]} f6 {[%emt 0:01:06]} 71. Qc7+ {[%emt 0:00:13]} Kg8 {[%emt 0:00:41]} 72. Qd8+ {[%emt 0:00:40]} Kg7 {[%emt 0:00:08]} 73. Qd5 {[%emt 0:00:28]} Qc8 {[%emt 0:00:21]} 74. Qd6 {[%emt 0:01:52]} Qc4+ {[%emt 0:00:45]} 75. Ke3 {[%emt 0:00:13]} Qc3+ {[%emt 0:00:45]} 76. Ke2 {[%emt 0:00:06]} Qc2+ {[%emt 0:00:21]} 77. Ke1 {[%emt 0:00:33]} Qc3+ {[%emt 0:00:16]} 78. Ke2 {[%emt 0:00:27]} Qc2+ {[%emt 0:00:05]} 79. Ke3 {[%emt 0:00:16]} Qc3+ {[%emt 0:00:08]} 80. Ke2 {[%emt 0:00:28]} Qc2+ {[%emt 0:00:04]} 81. Ke1 {[%emt 0:00:12]} Qc3+ {[%emt 0:00:04]} 82. Kf2 {[%emt 0:00:08]} Qd4+ {[%emt 0:02:47]} 83. Qxd4 {[%emt 0:00:05]} exd4 {[%emt 0:00:01]} 84. f4 {[%emt 0:02:14]} f5 {[%emt 0:00:15]} 85. g5 {[%emt 0:00:31]} hxg5 {[%emt 0:00:06]} 86. fxg5 {[%emt 0:00:01]} f4 {[%emt 0:00:05]} 87. Ke2 {[%emt 0:00:28]} Kf7 {[%emt 0:00:48]} 88. Ke1 {[%emt 0:00:39]} Kg7 {[%emt 0:00:13]} 89. Ke2 {[%emt 0:00:21]} Kf7 {[%emt 0:00:05]} 90. Ke1 {[%emt 0:00:50]} Kg7 {[%emt 0:00:05]} 91. Ke2 {[%emt 0:00:40]} Kf7 {[%emt 0:00:01]} 92. Kf3 {[%emt 0:00:43]} d3 {[%emt 0:00:10]} 93. Kf2 {[%emt 0:00:12]} Kg7 {[%emt 0:00:10]} 94. Kf3 {[%emt 0:00:26]} Kf7 {[%emt 0:00:01]} 95. Kf2 {[%emt 0:00:12]} Kg7 {[%emt 0:00:05]} 96. h6+ {[%emt 0:00:48]} Kh7 {[%emt 0:01:00]} 97. Kf3 {[%emt 0:00:06]} Kg6 {[%emt 0:00:04]} 98. Kf2 {[%emt 0:00:03]} Kh7 {[%emt 0:00:04]} 99. Kf3 {[%emt 0:00:03]} Kg6 {[%emt 0:00:04]} 100. Kf2 {[%emt 0:00:03]} 1/2-1/2

[Event "9th Sharjah Cup Women 2018"]
[Site "Sharjah"]
[Date "2018.12.18"]
[Round "7"]
[White "Drljevic, Ljilja"]
[Black "Greibrokk, Ingrid"]
[Result "1-0"]
[ECO "A00"]
[WhiteElo "2208"]
[BlackElo "1857"]
[Annotator "NA"]
[PlyCount "51"]
[EventDate "2018.12.14"]
[EventType "swiss"]
[EventCountry "UAE"]
[SourceTitle "playchess.com"]
[Source "ChessBase"]
[SourceQuality "1"]
[TimeControl "5400+30"]

1. g3 {[%emt 0:00:00]} d5 {[%emt 0:00:00]} 2. Bg2 {[%emt 0:00:00]} e5 {[%emt 0:00:34]} 3. c4 {[%emt 0:00:14]} dxc4 {[%emt 0:11:36]} 4. Nc3 {[%emt 0:02:28]} c6 {[%emt 0:01:48]} 5. Nf3 {[%emt 0:02:42]} Bd6 {[%emt 0:04:27]} 6. Ne4 {[%emt 0:01:57]} Nf6 {[%emt 0:02:12]} 7. Nxd6+ {[%emt 0:00:06]} Qxd6 {[%emt 0:00:05]} 8. Qc2 {[%emt 0:01:45]} b5 $11 {[%emt 0:17:32]} ({Better is} 8... O-O $15) 9. a4 {[%emt 0:00:44]} Bb7 {[%emt 0:00:10]} 10. b3 {[%emt 0:00:19]} cxb3 {[%emt 0:00:11]} 11. Qxb3 {[%emt 0:00:10]} a6 {[%emt 0:00:57]} 12. Ba3 {[%emt 0:00:42]} Qd5 {[%emt 0:03:11]} 13. Qb4 {[%emt 0:06:24]} c5 {[%emt 0:00:41]} 14. Qxc5 {[%emt 0:00:21]} Qxc5 {[%emt 0:00:05]} 15. Bxc5 {[%emt 0:00:04]} Ne4 {[%emt 0:02:28]} 16. Ba3 {[%emt 0:01:39]} Ng5 {[%emt 0:08:10]} 17. O-O {[%emt 0:01:53]} Nxf3+ {[%emt 0:00:13]} 18. exf3 {[%emt 0:00:04]} Nc6 {[%emt 0:04:18]} 19. f4 {[%emt 0:05:20]} exf4 {[%emt 0:12:22]} 20. Rab1 {[%emt 0:07:36]} fxg3 {[%emt 0:01:56]} 21. fxg3 {[%emt 0:05:28]} Na5 {[%emt 0:12:26]} 22. Rbe1+ {[%emt 0:04:15]} Kd8 {[%emt 0:00:14]} 23. Bb4 {[%emt 0:00:20]} Nc6 {[%emt 0:01:10]} 24. Rxf7 {[%emt 0:07:06]} Re8 {[%emt 0:03:51]} 25. Rb1 {[%emt 0:05:13]} Kc8 {[%emt 0:06:01]} 26. Rc1 {[%emt 0:02:11]} 1-0

[Event "9th Sharjah Cup Women 2018"]
[Site "Sharjah"]
[Date "2018.12.18"]
[Round "7"]
[White "Abdulla, Khayala"]
[Black "Shanya Mishra"]
[Result "1-0"]
[ECO "B22"]
[WhiteElo "2190"]
[BlackElo "1978"]
[Annotator "NA"]
[PlyCount "69"]
[EventDate "2018.12.14"]
[EventType "swiss"]
[EventCountry "UAE"]
[SourceTitle "playchess.com"]
[Source "ChessBase"]
[SourceQuality "1"]
[TimeControl "5400+30"]

1. e4 {[%emt 0:00:00]} c5 {[%emt 0:00:08]} 2. c3 {[%emt 0:00:03]} Nf6 {[%emt 0:00:57]} 3. e5 {[%emt 0:00:26]} Nd5 {[%emt 0:00:55]} 4. Nf3 {[%emt 0:00:17]} e6 {[%emt 0:00:58]} 5. d4 {[%emt 0:02:39]} cxd4 {[%emt 0:01:44]} 6. cxd4 {[%emt 0:00:21]} d6 {[%emt 0:00:55]} 7. Nc3 {[%emt 0:01:27]} Nxc3 {[%emt 0:02:09]} 8. bxc3 {[%emt 0:00:02]} Qc7 {[%emt 0:01:06]} 9. Bd2 {[%emt 0:04:02]} Nd7 {[%emt 0:02:15]} 10. exd6 {[%emt 0:01:58]} Bxd6 {[%emt 0:01:22]} 11. Bd3 {[%emt 0:00:45]} h6 {[%emt 0:08:21]} 12. O-O {[%emt 0:00:51]} O-O {[%emt 0:06:22]} 13. Qc1 {[%emt 0:06:12]} Rd8 {[%emt 0:04:11]} 14. Rb1 {[%emt 0:07:57]} b6 {[%emt 0:05:25]} 15. Re1 {[%emt 0:15:53]} Nf8 {[%emt 0:03:31]} 16. Ne5 {[%emt 0:03:02]} Bb7 {[%emt 0:05:39]} 17. Ng4 {[%emt 0:12:04]} h5 {[%emt 0:16:40]} 18. Ne5 {[%emt 0:01:29]} Nd7 {[%emt 0:02:41]} 19. f4 {[%emt 0:06:01]} Nxe5 {[%emt 0:04:29]} 20. fxe5 {[%emt 0:00:10]} Bf8 {[%emt 0:00:05]} 21. Bg5 {[%emt 0:04:03]} Rdc8 {[%emt 0:01:15]} 22. Re3 {[%emt 0:01:06]} g6 {[%emt 0:03:01]} 23. Bc2 {[%emt 0:01:37]} Bd5 {[%emt 0:02:24]} 24. Rg3 {[%emt 0:01:57]} Qc6 {[%emt 0:02:59]} 25. Qf4 {[%emt 0:01:50]} Rc7 {[%emt 0:05:49]} 26. Bf6 {[%emt 0:02:39]} Qe8 {[%emt 0:03:41]} 27. Qh4 {[%emt 0:02:38]} Bg7 {[%emt 0:01:17]} 28. Qxh5 {[%emt 0:01:52]} Rxc3 {[%emt 0:01:53]} 29. Bxg6 {[%emt 0:06:03]} fxg6 {[%emt 0:00:20]} 30. Rxg6 {[%emt 0:00:09]} Rc7 {[%emt 0:00:43]} 31. Qg5 {[%emt 0:03:02]} Qf8 {[%emt 0:00:17]} 32. Rf1 {[%emt 0:00:41]} Rf7 {[%emt 0:00:26]} 33. Rf2 {[%emt 0:02:00]} Rc8 {[%emt 0:06:26]} 34. Bxg7 {[%emt 0:01:31]} Qxg7 {[%emt 0:01:37]} 35. Rxf7 1-0

[Event "9th Sharjah Cup Women 2018"]
[Site "Sharjah"]
[Date "2018.12.18"]
[Round "7"]
[White "Babayan, Armine"]
[Black "Zozulia, Anna"]
[Result "0-1"]
[ECO "B32"]
[WhiteElo "2189"]
[BlackElo "2270"]
[Annotator "NA"]
[PlyCount "102"]
[EventDate "2018.12.14"]
[EventType "swiss"]
[EventCountry "UAE"]
[SourceTitle "playchess.com"]
[Source "ChessBase"]
[SourceQuality "1"]
[TimeControl "5400+30"]

1. e4 {[%emt 0:00:00]} c5 {[%emt 0:00:00]} 2. Nf3 {[%emt 0:00:26]} Nc6 {[%emt 0:01:31]} 3. d4 {[%emt 0:00:11]} cxd4 {[%emt 0:00:05]} 4. Nxd4 {[%emt 0:00:03]} Qb6 {[%emt 0:05:11]} 5. Nb3 {[%emt 0:00:19]} Nf6 {[%emt 0:00:06]} 6. Nc3 {[%emt 0:00:07]} e6 {[%emt 0:00:03]} 7. Bf4 {[%emt 0:02:58]} Bb4 {[%emt 0:05:24]} 8. Bd3 {[%emt 0:04:41]} d5 {[%emt 0:11:13]} 9. exd5 {[%emt 0:02:15]} Nxd5 {[%emt 0:01:03]} 10. Bd2 {[%emt 0:00:17]} Nxc3 {[%emt 0:02:35]} 11. bxc3 {[%emt 0:00:18]} Be7 {[%emt 0:12:25]} 12. Qh5 {[%emt 0:10:11]} g6 {[%emt 0:12:25]} 13. Qe2 {[%emt 0:07:59]} Bf6 {[%emt 0:00:56]} 14. O-O {[%emt 0:03:05]} O-O {[%emt 0:00:39]} 15. Rab1 {[%emt 0:02:33]} Qc7 {[%emt 0:06:11]} 16. Nc5 {[%emt 0:02:11]} Bg7 {[%emt 0:01:26]} 17. Ne4 {[%emt 0:03:46]} b6 {[%emt 0:05:06]} 18. Ng5 {[%emt 0:04:25]} Bb7 {[%emt 0:06:24]} 19. Rfe1 {[%emt 0:20:10]} e5 {[%emt 0:07:16]} 20. Qg4 {[%emt 0:02:38]} Qe7 {[%emt 0:07:56]} 21. Qh3 {[%emt 0:01:28]} h6 {[%emt 0:00:56]} 22. Nf3 {[%emt 0:04:04]} Bc8 {[%emt 0:07:08]} 23. Qg3 {[%emt 0:00:20]} Bb7 {[%emt 0:01:09]} 24. Nh4 {[%emt 0:03:28]} Rad8 {[%emt 0:00:43]} 25. Rbd1 {[%emt 0:12:38]} Qe6 {[%emt 0:00:24]} 26. Re4 {[%emt 0:06:35]} g5 {[%emt 0:02:12]} 27. Rg4 {[%emt 0:02:02]} Rxd3 {[%emt 0:00:40]} 28. cxd3 {[%emt 0:00:06]} f5 {[%emt 0:00:03]} 29. Ra4 {[%emt 0:00:49]} f4 {[%emt 0:00:50]} 30. Qf3 {[%emt 0:01:03]} gxh4 {[%emt 0:00:05]} 31. Qh5 {[%emt 0:00:40]} Qf5 {[%emt 0:02:17]} 32. Qxf5 {[%emt 0:00:22]} Rxf5 {[%emt 0:00:03]} 33. f3 {[%emt 0:00:36]} h3 {[%emt 0:00:17]} 34. gxh3 {[%emt 0:00:26]} Bf8 {[%emt 0:00:15]} 35. Be1 {[%emt 0:01:34]} b5 {[%emt 0:00:15]} 36. Re4 {[%emt 0:00:32]} Nb8 {[%emt 0:01:23]} 37. Rb1 {[%emt 0:00:11]} Bxe4 {[%emt 0:00:16]} 38. dxe4 {[%emt 0:00:01]} Rg5+ {[%emt 0:01:08]} 39. Kf1 {[%emt 0:00:08]} a6 {[%emt 0:00:04]} 40. a4 {[%emt 0:01:06]} Nd7 {[%emt 0:00:46]} 41. axb5 {[%emt 0:00:06]} axb5 {[%emt 0:00:02]} 42. Rxb5 {[%emt 0:00:05]} Bc5 {[%emt 0:00:35]} 43. Rb7 {[%emt 0:02:46]} Rg7 {[%emt 0:00:15]} 44. Bh4 {[%emt 0:00:42]} Nb6 {[%emt 0:00:37]} 45. Rb8+ {[%emt 0:00:10]} Kf7 {[%emt 0:00:12]} 46. Bd8 {[%emt 0:01:15]} Nc4 {[%emt 0:01:23]} 47. Rc8 {[%emt 0:00:44]} Rg1+ {[%emt 0:00:38]} 48. Ke2 {[%emt 0:00:01]} Rg2+ {[%emt 0:00:05]} 49. Kd1 {[%emt 0:01:02]} Ne3+ {[%emt 0:00:57]} 50. Ke1 {[%emt 0:00:04]} Nc2+ {[%emt 0:00:17]} 51. Kd1 {[%emt 0:00:05]} Be3 {[%emt 0:00:15]} 0-1

[Event "9th Sharjah Cup Women 2018"]
[Site "Sharjah"]
[Date "2018.12.18"]
[Round "7"]
[White "Mona, Khaled"]
[Black "Al Maamari, Wafia Darwish"]
[Result "1-0"]
[ECO "A46"]
[WhiteElo "2158"]
[BlackElo "1829"]
[Annotator "NA"]
[PlyCount "79"]
[EventDate "2018.12.14"]
[EventType "swiss"]
[EventCountry "UAE"]
[SourceTitle "playchess.com"]
[Source "ChessBase"]
[SourceQuality "1"]
[TimeControl "5400+30"]

1. d4 {[%emt 0:00:00]} Nf6 {[%emt 0:00:00]} 2. Nf3 {[%emt 0:00:00]} e6 {[%emt 0:00:00]} 3. e3 {[%emt 0:00:07]} b6 {[%emt 0:00:07]} 4. Bd3 {[%emt 0:00:08]} Bb7 {[%emt 0:00:06]} 5. O-O {[%emt 0:00:04]} d5 {[%emt 0:00:23]} 6. Ne5 $11 {[%emt 0:00:08] LiveBook: 114 Games} Bd6 {[%emt 0:01:42]} 7. f4 {[%emt 0:00:08]} O-O {[%emt 0:01:10]} 8. Nd2 {[%emt 0:00:07]} c5 {[%emt 0:01:02]} 9. b3 {[%emt 0:00:14]} Nc6 {[%emt 0:00:45]} 10. Bb2 {[%emt 0:00:09]} Rc8 {[%emt 0:00:47]} 11. a3 {[%emt 0:00:09]} Ne7 {[%emt 0:01:04]} 12. Qf3 {[%emt 0:00:45]} b5 {[%emt 0:02:01]} 13. dxc5 {[%emt 0:05:41]} Bxc5 {[%emt 0:01:30]} 14. Kh1 {[%emt 0:00:22]} Nf5 {[%emt 0:10:08]} 15. Rfe1 {[%emt 0:03:35]} Qb6 {[%emt 0:17:27]} 16. Ng4 {[%emt 0:02:19]} Nxg4 {[%emt 0:03:50]} 17. Qxg4 {[%emt 0:00:06]} g6 {[%emt 0:01:34]} 18. e4 {[%emt 0:01:23]} Ne3 {[%emt 0:06:05]} 19. Qh3 {[%emt 0:02:17]} f5 {[%emt 0:18:16]} 20. exf5 {[%emt 0:01:19]} exf5 {[%emt 0:00:17]} 21. Qh6 {[%emt 0:12:16]} Rf7 {[%emt 0:06:14]} 22. h3 {[%emt 0:00:37]} Bf8 {[%emt 0:03:51]} 23. Qh4 {[%emt 0:00:59]} Nxc2 {[%emt 0:00:41]} 24. Nf3 {[%emt 0:01:28]} Nxe1 {[%emt 0:03:36]} 25. Rxe1 {[%emt 0:00:03]} Bc5 {[%emt 0:07:57]} 26. Re2 {[%emt 0:02:23]} d4 {[%emt 0:04:53]} 27. Ne5 {[%emt 0:05:22]} Re7 {[%emt 0:01:47]} 28. Qf2 {[%emt 0:00:21]} Rce8 {[%emt 0:00:36]} 29. b4 {[%emt 0:00:16]} Bd6 {[%emt 0:00:34]} 30. Bxd4 {[%emt 0:00:50]} Qa6 {[%emt 0:01:49]} 31. Qh4 {[%emt 0:13:12]} Bxe5 {[%emt 0:01:13]} 32. Bxe5 {[%emt 0:00:06]} Qxa3 {[%emt 0:02:18]} 33. Bxb5 {[%emt 0:00:40]} Qxb4 {[%emt 0:00:43]} 34. Rb2 {[%emt 0:05:15]} Qe4 {[%emt 0:00:21]} 35. Bxe8 {[%emt 0:01:22]} Rxe8 {[%emt 0:00:01]} 36. Qf6 {[%emt 0:00:31]} Rxe5 {[%emt 0:01:20]} 37. fxe5 {[%emt 0:00:34]} Qc6 {[%emt 0:01:09]} 38. e6 {[%emt 0:01:02]} Qc1+ {[%emt 0:00:43]} 39. Kh2 Qc7+ {[%emt 0:00:15]} 40. g3 {[%emt 0:00:24]} 1-0

[Event "9th Sharjah Cup Women 2018"]
[Site "Sharjah"]
[Date "2018.12.18"]
[Round "7"]
[White "Mezioud, Amina"]
[Black "Kiolbasa, Oliwia"]
[Result "1/2-1/2"]
[ECO "C77"]
[WhiteElo "2065"]
[BlackElo "2244"]
[Annotator "NA"]
[PlyCount "64"]
[EventDate "2018.12.14"]
[EventType "swiss"]
[EventCountry "UAE"]
[SourceTitle "playchess.com"]
[Source "ChessBase"]
[SourceQuality "1"]
[TimeControl "5400+30"]

1. e4 {[%emt 0:00:26]} e5 {[%emt 0:00:00]} 2. Nf3 {[%emt 0:00:05]} Nc6 {[%emt 0:00:00]} 3. Bb5 {[%emt 0:00:04]} a6 {[%emt 0:00:00]} 4. Ba4 {[%emt 0:00:05]} Nf6 {[%emt 0:00:09]} 5. Qe2 {[%emt 0:00:12]} b5 {[%emt 0:00:21]} 6. Bb3 $11 {[%emt 0:00:06] LiveBook: 1069 Games} Bc5 {[%emt 0:00:10]} 7. d3 {[%emt 0:00:33]} O-O {[%emt 0:02:45]} 8. O-O {[%emt 0:00:29]} h6 {[%emt 0:02:39]} 9. c3 {[%emt 0:01:51]} d6 {[%emt 0:00:53]} 10. Rd1 {[%emt 0:05:05]} Re8 {[%emt 0:01:09]} 11. h3 {[%emt 0:02:14]} Bb7 {[%emt 0:02:07]} 12. Nbd2 {[%emt 0:01:10]} Bb6 {[%emt 0:12:17]} 13. Nf1 {[%emt 0:02:54]} Ne7 {[%emt 0:02:18]} 14. Ng3 {[%emt 0:00:41]} c5 {[%emt 0:00:48]} 15. Nh4 {[%emt 0:06:38]} d5 {[%emt 0:06:28]} 16. Bc2 {[%emt 0:02:15]} Qc7 {[%emt 0:02:32]} 17. Qf3 {[%emt 0:02:46]} Qc6 {[%emt 0:05:12]} 18. Re1 dxe4 {[%emt 0:09:58]} 19. dxe4 {[%emt 0:04:40]} Kh7 {[%emt 0:04:44]} 20. Nhf5 {[%emt 0:03:03]} Nxf5 {[%emt 0:03:36]} 21. Nxf5 {[%emt 0:00:15]} Ng8 {[%emt 0:01:40]} 22. c4 {[%emt 0:13:15]} Ba5 {[%emt 0:05:51]} 23. cxb5 {[%emt 0:00:42]} axb5 {[%emt 0:00:29]} 24. Rd1 {[%emt 0:00:15]} Rad8 {[%emt 0:03:11]} 25. Be3 {[%emt 0:00:10]} c4 {[%emt 0:01:45]} 26. Rac1 {[%emt 0:06:19]} Qf6 {[%emt 0:03:56]} 27. Bc5 {[%emt 0:02:14]} Bc7 {[%emt 0:01:52]} 28. a3 {[%emt 0:12:57]} Qc6 {[%emt 0:01:28]} 29. Be3 {[%emt 0:06:03]} Rxd1+ {[%emt 0:05:33]} 30. Rxd1 {[%emt 0:00:11]} Rd8 {[%emt 0:00:10]} 31. Rxd8 {[%emt 0:02:29]} Bxd8 {[%emt 0:00:07]} 32. Qd1 {[%emt 0:04:42]} Bc7 1/2-1/2

[Event "9th Sharjah Cup Women 2018"]
[Site "Sharjah"]
[Date "2018.12.18"]
[Round "7"]
[White "Samaganova, Alexandra"]
[Black "Amal Fadel S M Alshamsi"]
[Result "1-0"]
[ECO "A10"]
[WhiteElo "2038"]
[BlackElo "1520"]
[Annotator "NA"]
[PlyCount "33"]
[EventDate "2018.12.14"]
[EventType "swiss"]
[EventCountry "UAE"]
[SourceTitle "playchess.com"]
[Source "ChessBase"]
[SourceQuality "1"]
[TimeControl "5400+30"]

1. c4 {[%emt 0:00:00]} b6 {[%emt 0:00:00]} 2. Nf3 {[%emt 0:00:15]} Bb7 {[%emt 0:00:00]} 3. e3 {[%emt 0:00:18]} Nf6 {[%emt 0:04:33]} 4. Nc3 {[%emt 0:00:43]} e6 {[%emt 0:00:49]} 5. d4 {[%emt 0:02:14]} d5 {[%emt 0:00:23]} 6. cxd5 {[%emt 0:00:54]} Nxd5 {[%emt 0:00:48]} 7. Bd3 {[%emt 0:01:30]} Nxc3 {[%emt 0:02:46]} 8. bxc3 {[%emt 0:00:10]} Bd6 {[%emt 0:00:12]} 9. e4 {[%emt 0:07:06]} O-O {[%emt 0:02:16]} 10. O-O {[%emt 0:12:13]} c5 {[%emt 0:03:45]} 11. Re1 $11 {[%emt 0:06:33]} f5 {[%emt 0:11:30]} 12. exf5 {[%emt 0:07:14]} exf5 {[%emt 0:00:51]} 13. Bc4+ {[%emt 0:01:25]} Kh8 {[%emt 0:03:18]} 14. Ng5 {[%emt 0:00:51]} h6 {[%emt 0:23:10]} 15. Qh5 {[%emt 0:07:17]} cxd4 {[%emt 0:03:30]} 16. Qg6 {[%emt 0:04:26]} hxg5 {[%emt 0:04:26]} 17. Qh5# {[%emt 0:00:06] Bc8} 1-0

[Event "9th Sharjah Cup Women 2018"]
[Site "Sharjah"]
[Date "2018.12.18"]
[Round "7"]
[White "Boshra, Alshaeby"]
[Black "Gevorgyan, Irina"]
[Result "0-1"]
[ECO "D30"]
[WhiteElo "2019"]
[BlackElo "2301"]
[Annotator "NA"]
[PlyCount "58"]
[EventDate "2018.12.14"]
[EventType "swiss"]
[EventCountry "UAE"]
[SourceTitle "playchess.com"]
[Source "ChessBase"]
[SourceQuality "1"]
[TimeControl "5400+30"]

1. d4 {[%emt 0:00:00]} d5 {[%emt 0:00:00]} 2. c4 {[%emt 0:00:06]} e6 {[%emt 0:00:00]} 3. Nf3 {[%emt 0:01:50]} c6 {[%emt 0:00:17]} 4. e3 {[%emt 0:01:13]} Bd6 {[%emt 0:02:44]} 5. Nbd2 {[%emt 0:02:29]} f5 {[%emt 0:08:01]} 6. Be2 {[%emt 0:01:59]} Nf6 {[%emt 0:01:51]} 7. a3 {[%emt 0:00:14]} Nbd7 {[%emt 0:01:36]} 8. b4 {[%emt 0:00:13]} O-O {[%emt 0:20:09]} 9. Bb2 {[%emt 0:02:25]} Ne4 {[%emt 0:02:54]} 10. O-O {[%emt 0:00:51]} Qf6 {[%emt 0:01:05]} 11. b5 {[%emt 0:05:08]} cxb5 {[%emt 0:01:14]} 12. cxd5 {[%emt 0:02:13]} exd5 {[%emt 0:00:15]} 13. Bxb5 {[%emt 0:09:37]} Qe7 {[%emt 0:10:55]} 14. Qb3 {[%emt 0:05:25]} Ndf6 {[%emt 0:01:16]} 15. Nxe4 {[%emt 0:05:08]} fxe4 {[%emt 0:00:21]} 16. Ne5 {[%emt 0:00:18]} Be6 {[%emt 0:01:41]} 17. a4 {[%emt 0:06:26]} Ng4 {[%emt 0:06:03]} 18. Nxg4 {[%emt 0:01:08]} Bxg4 {[%emt 0:00:09]} 19. h3 {[%emt 0:25:46]} Be6 {[%emt 0:20:09]} 20. Ba3 {[%emt 0:09:24]} Rad8 {[%emt 0:00:09]} 21. Ra2 {[%emt 0:08:26]} Qg5 {[%emt 0:15:31]} 22. Bxd6 {[%emt 0:01:47]} Rxd6 {[%emt 0:00:04]} 23. Kh2 {[%emt 0:00:19]} a6 {[%emt 0:01:55]} 24. Be2 {[%emt 0:01:12]} Bxh3 {[%emt 0:01:36]} 25. gxh3 {[%emt 0:01:39]} Rh6 {[%emt 0:00:03]} 26. f4 {[%emt 0:01:59]} Qf5 {[%emt 0:00:46]} 27. Bg4 {[%emt 0:05:33]} Qxg4 {[%emt 0:00:06]} 28. Qxd5+ {[%emt 0:00:03]} Kh8 {[%emt 0:00:06]} 29. Qb3 Qe6 0-1